bitfinex/quotes_BTCUSD_20251110
["timestamp","ask_amount","ask_price","bid_price","bid_amount"]
[1762795180761,0.21237345,105500.0,105490.0,0.05093422]
[1762795181214,0.53661199,105500.0,105490.0,0.05093422]
[1762795181431,0.53661199,105500.0,105490.0,0.24052565]
[1762795181656,0.21237345,105500.0,105490.0,0.24052565]
[1762795181917,0.21237345,105500.0,105490.0,0.05093422]
[1762795182359,0.21237345,105500.0,105490.0,0.24052565]
[1762795182926,0.53661199,105500.0,105490.0,0.24052565]
[1762795184006,0.53661199,105500.0,105490.0,0.05093422]
[1762795184482,0.53661199,105500.0,105490.0,0.24052565]
[1762795184696,0.53661199,105500.0,105490.0,0.05093422]
[1762795186012,0.86085053,105500.0,105490.0,0.24052565]
[1762795186239,0.67127708,105500.0,105490.0,0.24052565]
[1762795186454,0.86085053,105500.0,105490.0,0.05093422]
[1762795187985,0.18959143,105490.0,105480.0,0.07043944]
[1762795188216,0.94837487,105490.0,105480.0,0.06791933]
[1762795188434,0.94837487,105490.0,105470.0,0.41490671]
[1762795188435,0.2094094,105480.0,105470.0,0.41490671]
[1762795188646,0.85788648,105480.0,105470.0,0.41490671]
[1762795188869,0.85788648,105480.0,105470.0,0.21341933]
[1762795190163,0.85788648,105480.0,105470.0,0.40504671]
[1762795190382,0.85788648,105480.0,105470.0,0.21541933]
[1762795191070,0.88785152,105480.0,105470.0,0.21541933]
[1762795191297,0.88785152,105480.0,105470.0,0.06991933]
[1762795191511,1.21209006,105480.0,105470.0,0.05298742]
[1762795191930,0.23937444,105480.0,105470.0,0.05298742]
[1762795192139,0.88785152,105480.0,105470.0,0.08697896]
[1762795192349,0.88785152,105480.0,105470.0,0.08497896]
[1762795192794,0.88885152,105480.0,105470.0,0.08497896]
[1762795193460,1.24492444,105480.0,105470.0,0.08497896]
[1762795194626,1.23512444,105480.0,105470.0,0.03399154]
[1762795194852,1.67575909,105480.0,105470.0,0.05948121]
[1762795195077,0.20944536,105460.0,105450.0,0.00228533]
[1762795195296,0.85792244,105460.0,105450.0,0.00242886]
[1762795196421,0.85792244,105460.0,105450.0,0.00342886]
[1762795196637,0.85792244,105460.0,105450.0,0.00442886]
[1762795198023,0.84812244,105460.0,105450.0,0.00442886]
[1762795198833,0.84812244,105460.0,105450.0,0.00342886]
[1762795199262,0.84812244,105460.0,105450.0,0.1920922]
[1762795199517,0.5238839,105460.0,105450.0,0.1920922]
[1762795200002,0.84812244,105460.0,105450.0,0.1920922]
[1762795200439,0.5238839,105460.0,105450.0,0.2204922]
[1762795200647,0.5238839,105460.0,105450.0,0.2450222]
[1762795200832,0.5238839,105460.0,105450.0,0.2204922]
[1762795201288,0.01,105460.0,105450.0,0.2450222]
[1762795201495,0.33423854,105460.0,105450.0,0.2204922]
[1762795202568,0.5238839,105460.0,105450.0,0.2204922]
[1762795202778,0.33423854,105460.0,105450.0,0.2204922]
[1762795203230,0.84812244,105460.0,105450.0,0.00242886]
[1762795203425,0.19964536,105460.0,105450.0,0.1920922]
[1762795203685,0.84812244,105460.0,105450.0,0.1920922]
[1762795204983,0.84812244,105460.0,105450.0,0.03082886]
[1762795205157,0.84812244,105460.0,105450.0,0.00242886]
[1762795206455,0.90931725,105460.0,105450.0,0.00242886]
[1762795206885,0.5238839,105460.0,105450.0,0.2450222]
[1762795207084,0.52412475,105460.0,105450.0,0.2204922]
[1762795207295,0.52412475,105460.0,105450.0,0.01433886]
[1762795207501,0.52412475,105460.0,105450.0,0.00242886]
[1762795207703,0.52412475,105460.0,105450.0,0.1920922]
[1762795207935,0.52412475,105460.0,105450.0,0.00242886]
[1762795209350,0.33447939,105460.0,105450.0,0.1920922]
[1762795209556,0.52412475,105460.0,105450.0,0.1920922]
[1762795209761,0.52412475,105460.0,105450.0,0.00242886]
[1762795210009,0.52412475,105460.0,105450.0,0.1920922]
[1762795210472,0.52412475,105460.0,105450.0,0.00242886]
[1762795212465,0.84860414,105460.0,105450.0,0.00242886]
[1762795212715,0.90864562,105460.0,105450.0,0.00242886]
[1762795213191,1.04292963,105460.0,105450.0,0.00242886]
[1762795213393,1.36592963,105460.0,105450.0,0.00242886]
[1762795213541,1.2678279,105460.0,105450.0,0.00242886]
[1762795213987,1.2698279,105460.0,105450.0,0.00242886]
[1762795214192,0.94534851,105460.0,105450.0,0.00242886]
[1762795214394,1.2698279,105460.0,105450.0,0.00242886]
[1762795214656,1.2688279,105460.0,105450.0,0.00242886]
[1762795214999,1.2708279,105460.0,105450.0,0.00242886]
[1762795215979,0.94734851,105460.0,105450.0,0.00242886]
[1762795216191,0.91627863,105460.0,105450.0,0.00242886]
[1762795217068,0.52812475,105460.0,105450.0,0.01433886]
[1762795217278,0.52812475,105460.0,105450.0,0.05535886]
[1762795217491,0.52812475,105460.0,105450.0,0.2450222]
[1762795217971,0.52812475,105460.0,105450.0,0.2204922]
[1762795222224,0.014,105460.0,105450.0,0.2454622]
[1762795222450,0.20364536,105460.0,105450.0,0.2454622]
[1762795222947,0.52812475,105460.0,105450.0,0.00242886]
[1762795223194,0.96260118,105460.0,105450.0,0.00242886]
[1762795223412,0.93425717,105460.0,105450.0,0.00242886]
[1762795223640,0.93625717,105460.0,105450.0,0.00242886]
[1762795223862,0.61177778,105460.0,105450.0,0.00242886]
[1762795224513,0.28729839,105460.0,105450.0,0.00242886]
[1762795224715,0.58007913,105460.0,105450.0,0.00242886]
[1762795224919,0.58107913,105460.0,105450.0,0.00242886]
[1762795227558,0.90555852,105460.0,105450.0,0.00242886]
[1762795228071,0.93405153,105460.0,105450.0,0.00242886]
[1762795228238,1.28775018,105460.0,105450.0,0.00242886]
[1762795228460,1.38585191,105460.0,105450.0,0.00242886]
[1762795228834,1.41426541,105460.0,105450.0,0.00242886]
[1762795229065,0.18971732,105420.0,105410.0,0.07995933]
[1762795229268,0.51419671,105420.0,105410.0,0.00014359]
[1762795229492,0.54430647,105420.0,105410.0,0.1898789]
[1762795229705,0.54430647,105420.0,105410.0,0.19082302]
[1762795229883,0.21982708,105420.0,105410.0,0.19082302]
[1762795230221,0.51419671,105420.0,105410.0,0.19082302]
[1762795230767,0.51419671,105420.0,105410.0,0.19182302]
[1762795231150,0.51419671,105420.0,105410.0,0.00208771]
[1762795231358,0.54324904,105420.0,105410.0,0.19182302]
[1762795231593,0.54324904,105420.0,105410.0,0.00208771]
[1762795232662,0.02905233,105420.0,105410.0,0.19282302]
[1762795232872,0.60470307,105420.0,105410.0,0.19282302]
[1762795233690,0.60470307,105420.0,105410.0,0.20486302]
[1762795234189,0.41498575,105420.0,105410.0,0.20486302]
[1762795234372,0.18971732,105420.0,105410.0,0.24645302]
[1762795234599,0.18971732,105420.0,105410.0,0.05671771]
[1762795234802,0.28022368,105420.0,105410.0,0.24645302]
[1762795235010,0.60470307,105420.0,105410.0,0.24645302]
[1762795235467,0.60470307,105420.0,105410.0,0.22148302]
[1762795235690,0.60470307,105420.0,105410.0,0.00308771]
[1762795236111,0.60470307,105420.0,105410.0,0.19282302]
[1762795236266,0.41498575,105420.0,105410.0,0.20944302]
[1762795237828,0.60470307,105420.0,105410.0,0.20944302]
[1762795238003,0.09050636,105420.0,105410.0,0.23441302]
[1762795238205,0.60470307,105420.0,105410.0,0.23441302]
[1762795238569,0.60470307,105420.0,105410.0,0.00308771]
[1762795238770,0.60470307,105420.0,105410.0,0.19282302]
[1762795239597,0.60470307,105420.0,105410.0,0.00308771]
[1762795239990,0.60470307,105420.0,105410.0,0.19282302]
[1762795240195,0.18971732,105420.0,105410.0,0.24645302]
[1762795240395,0.51419671,105420.0,105410.0,0.22148302]
[1762795240742,0.51419671,105420.0,105410.0,0.00308771]
[1762795241047,0.51419671,105420.0,105410.0,0.19282302]
[1762795241347,0.51419671,105420.0,105410.0,0.00308771]
[1762795243602,0.51419671,105420.0,105410.0,0.01512771]
[1762795244625,0.51419671,105420.0,105410.0,0.00308771]
[1762795246993,0.5426784,105430.0,105410.0,0.24645302]
[1762795247395,0.95618476,105430.0,105420.0,0.02866]
[1762795247602,0.18971732,105420.0,105410.0,0.2288889]
[1762795247812,0.95618476,105430.0,105410.0,0.2288889]
[1762795248047,0.95618476,105430.0,105410.0,0.2268889]
[1762795248457,0.92768601,105430.0,105420.0,0.21837732]
[1762795248981,0.92768601,105430.0,105420.0,0.20175732]
[1762795249435,0.73798575,105430.0,105420.0,0.20175732]
[1762795249653,0.92768507,105430.0,105420.0,0.18971732]
[1762795249853,0.60320568,105430.0,105420.0,0.20175732]
[1762795250017,0.92768507,105430.0,105420.0,0.21837732]
[1762795250421,0.09050636,105430.0,105420.0,0.24334732]
[1762795250696,0.5521736,105440.0,105430.0,0.18969932]
[1762795250907,0.32447939,105440.0,105430.0,0.21835932]
[1762795251111,0.51416072,105440.0,105430.0,0.24332932]
[1762795251334,0.51416072,105440.0,105430.0,0.21835932]
[1762795251740,0.32447939,105440.0,105430.0,0.21835932]
[1762795251942,0.32647939,105440.0,105430.0,0.21835932]
[1762795252352,0.002,105440.0,105430.0,0.21835932]
[1762795252574,0.002,105440.0,105430.0,0.24194932]
[1762795252789,0.002,105440.0,105430.0,0.56642871]
[1762795253006,0.002,105440.0,105430.0,0.24194932]
[1762795253209,0.002,105440.0,105430.0,0.63634671]
[1762795253794,0.61411072,105470.0,105450.0,0.18964722]
[1762795253795,0.28963133,105470.0,105450.0,0.18964722]
[1762795254001,0.63391072,105470.0,105460.0,0.20492536]
[1762795254157,0.95691072,105470.0,105460.0,0.01528]
[1762795254576,0.20944536,105460.0,105450.0,0.21411722]
[1762795254983,0.20953603,105460.0,105450.0,0.04103]
[1762795255205,0.20953603,105460.0,105450.0,0.23069334]
[1762795256445,0.20953603,105460.0,105450.0,0.04103]
[1762795256651,0.21153603,105460.0,105450.0,0.23069334]
[1762795256841,0.53601542,105460.0,105450.0,0.04103]
[1762795256992,0.53601542,105460.0,105440.0,0.22363539]
[1762795257197,0.0198,105450.0,105440.0,0.22363539]
[1762795257398,0.0198,105450.0,105440.0,0.19916539]
[1762795257624,0.0198,105450.0,105440.0,0.21572539]
[1762795258052,0.0198,105450.0,105440.0,0.24019539]
[1762795259976,0.0198,105450.0,105440.0,0.25235539]
[1762795261928,0.20946334,105450.0,105440.0,0.25235539]
[1762795262129,0.0198,105450.0,105440.0,0.25235539]
[1762795264758,0.0198,105450.0,105440.0,0.57683478]
[1762795265174,9.067e-05,105460.0,105450.0,0.51414273]
[1762795265381,9.067e-05,105460.0,105450.0,0.89033273]
[1762795265594,9.067e-05,105460.0,105450.0,0.95825206]
[1762795266344,0.52365305,105500.0,105480.0,0.18959322]
[1762795266548,0.52413163,105500.0,105480.0,0.20615322]
[1762795266727,0.18959143,105490.0,105480.0,0.23062322]
[1762795266966,0.63086718,105490.0,105480.0,0.1896094]
[1762795267162,0.52397082,105490.0,105480.0,0.2306394]
[1762795267597,0.52397082,105490.0,105480.0,0.01656]
[1762795268015,0.52397082,105490.0,105480.0,0.2061694]
[1762795268805,0.1896094,105480.0,105470.0,0.22354803]
[1762795269008,0.52379573,105490.0,105470.0,0.24010803]
[1762795269182,0.52379573,105490.0,105480.0,0.01656]
[1762795269387,0.52379573,105490.0,105470.0,0.21409691]
[1762795269586,0.52379573,105490.0,105470.0,0.02447]
[1762795269587,0.5139137,105480.0,105470.0,0.02447]
[1762795269988,0.5139137,105480.0,105470.0,0.23065738]
[1762795270241,0.854608,105480.0,105470.0,0.07028257]
[1762795270451,0.854608,105480.0,105470.0,0.25990995]
[1762795270683,0.854608,105480.0,105460.0,0.22356216]
[1762795270894,0.5501037,105480.0,105470.0,0.19062738]
[1762795271105,0.5303037,105480.0,105470.0,0.19062738]
[1762795271326,0.5501037,105480.0,105470.0,0.001]
[1762795271530,0.5501037,105480.0,105470.0,0.19062738]
[1762795271973,0.5501037,105480.0,105460.0,0.22356216]
[1762795272208,0.3243043,105470.0,105460.0,0.22356216]
[1762795272420,0.3406943,105470.0,105460.0,0.20009216]
[1762795272626,0.3406943,105470.0,105460.0,0.19909216]
[1762795272827,0.3243043,105470.0,105460.0,0.28515202]
[1762795273030,0.3243043,105470.0,105460.0,0.30962202]
[1762795273553,0.3243043,105470.0,105460.0,0.31162202]
[1762795273758,0.51393168,105470.0,105460.0,0.31362202]
[1762795273990,0.3243043,105470.0,105460.0,0.31362202]
[1762795274208,0.51393168,105470.0,105460.0,0.27970522]
[1762795274622,0.51393168,105470.0,105460.0,0.30417522]
[1762795275246,0.3243043,105470.0,105460.0,0.30417522]
[1762795275448,0.51393168,105470.0,105460.0,0.30417522]
[1762795275660,0.3243043,105470.0,105460.0,0.30417522]
[1762795276492,0.5139137,105480.0,105460.0,0.30417522]
[1762795276710,0.3243043,105470.0,105460.0,0.23467536]
[1762795277574,0.3243043,105480.0,105470.0,0.18962738]
[1762795277780,0.5139137,105480.0,105470.0,0.20618738]
[1762795277992,0.5303037,105480.0,105460.0,0.69807966]
[1762795278201,0.5303037,105480.0,105470.0,0.20178738]
[1762795278423,0.5303037,105480.0,105470.0,0.01216]
[1762795278623,0.5303037,105480.0,105470.0,0.20178738]
[1762795279137,0.5303037,105480.0,105470.0,0.20378738]
[1762795280019,0.5501037,105480.0,105470.0,0.002]
[1762795280221,0.874408,105480.0,105470.0,0.002]
[1762795281095,0.89212605,105480.0,105470.0,0.002]
[1762795281755,1.21512605,105480.0,105470.0,0.001]
[1762795281935,0.18964536,105460.0,105450.0,0.19914614]
[1762795282100,0.52982966,105460.0,105450.0,0.27166101]
[1762795282280,0.54756799,105460.0,105450.0,0.27166101]
[1762795282489,0.22326369,105460.0,105450.0,0.27166101]
[1762795282725,0.54756799,105460.0,105450.0,0.27166101]
[1762795282981,0.53168799,105460.0,105450.0,0.31074101]
[1762795283495,0.53168943,105460.0,105450.0,0.31174101]
[1762795283722,0.34204407,105460.0,105450.0,0.31174101]
[1762795283912,0.20738513,105460.0,105450.0,0.31174101]
[1762795284255,0.53168943,105460.0,105450.0,0.31174101]
[1762795284662,0.53168943,105460.0,105450.0,0.31274101]
[1762795284873,0.01773977,105460.0,105450.0,0.31274101]
[1762795285088,0.60443921,105470.0,105460.0,0.18964536]
[1762795285300,0.62217875,105470.0,105460.0,0.22872536]
[1762795285485,0.62217875,105470.0,105460.0,0.01632]
[1762795285688,0.62217875,105470.0,105460.0,0.20596536]
[1762795285911,0.62217875,105470.0,105460.0,0.01632]
[1762795286147,0.62217875,105470.0,105450.0,0.29642101]
[1762795286148,0.18964536,105460.0,105450.0,0.001]
[1762795286347,0.8916735,105460.0,105450.0,0.001]
[1762795286549,0.5316892,105460.0,105450.0,0.01732]
[1762795286755,0.5316892,105460.0,105450.0,0.22874334]
[1762795286980,0.5316892,105460.0,105450.0,0.20598334]
[1762795287392,0.5316892,105460.0,105450.0,0.22874334]
[1762795287803,0.01773954,105460.0,105450.0,0.22874334]
[1762795287996,0.55057534,105480.0,105460.0,0.18964536]
[1762795288198,0.87487964,105480.0,105460.0,0.55302966]
[1762795288444,0.86413577,105480.0,105470.0,0.01632]
[1762795288612,0.54113577,105480.0,105470.0,0.20594738]
[1762795289015,0.21683147,105480.0,105470.0,0.22870738]
[1762795289235,0.54213577,105480.0,105470.0,0.01632]
[1762795289437,0.54113577,105480.0,105470.0,0.01632]
[1762795289646,0.54113577,105480.0,105470.0,0.20594738]
[1762795289838,0.54113577,105480.0,105470.0,0.01632]
[1762795290037,0.54113577,105480.0,105470.0,0.20594738]
[1762795290206,0.54213577,105480.0,105470.0,0.20594738]
[1762795290610,0.54113577,105480.0,105470.0,0.20594738]
[1762795290851,0.54213577,105480.0,105470.0,0.20594738]
[1762795291054,0.54313577,105480.0,105470.0,0.20594738]
[1762795291639,0.54313577,105480.0,105470.0,0.01632]
[1762795291833,0.54313577,105480.0,105470.0,0.01056]
[1762795292295,0.55901577,105480.0,105460.0,0.21240536]
[1762795292550,0.18962738,105470.0,105460.0,0.21240536]
[1762795292753,0.20108987,105480.0,105460.0,0.22872536]
[1762795292981,0.54314127,105480.0,105470.0,0.18962738]
[1762795293163,0.54214127,105480.0,105470.0,0.18962738]
[1762795293304,0.55802127,105480.0,105470.0,0.18962738]
[1762795293504,0.55902127,105480.0,105470.0,0.18962738]
[1762795293916,0.55702127,105480.0,105470.0,0.18962738]
[1762795294118,0.55702127,105480.0,105460.0,0.21240536]
[1762795294350,0.55702127,105480.0,105470.0,0.18962738]
[1762795294351,0.58336127,105480.0,105470.0,0.18962738]
[1762795294547,0.55902127,105480.0,105460.0,0.21240536]
[1762795294723,0.55802127,105480.0,105470.0,0.18962738]
[1762795295046,0.56277127,105480.0,105460.0,0.22485536]
[1762795295701,0.18962738,105470.0,105460.0,0.22485536]
[1762795295814,0.54502417,105480.0,105460.0,0.22485536]
[1762795296036,0.54502417,105480.0,105470.0,0.18962738]
[1762795296037,0.56277684,105480.0,105470.0,0.18962738]
[1762795296408,0.56477684,105480.0,105470.0,0.18962738]
[1762795296827,0.36568697,105480.0,105470.0,0.20207738]
[1762795297079,0.001,105480.0,105470.0,0.56546168]
[1762795297316,0.002,105480.0,105470.0,0.56546168]
[1762795297524,0.001,105480.0,105470.0,0.56546168]
[1762795297948,0.29954201,105510.0,105500.0,0.18957345]
[1762795298155,0.2272665,105510.0,105500.0,0.20589345]
[1762795298360,0.3081927,105510.0,105500.0,0.20589345]
[1762795298581,0.3081927,105510.0,105500.0,0.22865345]
[1762795298960,0.21768634,105510.0,105500.0,0.22865345]
[1762795299367,0.01823085,105510.0,105500.0,0.22865345]
[1762795299803,0.662817,105510.0,105480.0,0.61404598]
[1762795299998,0.18957559,105500.0,105490.0,0.18958862]
[1762795300174,0.18957559,105500.0,105490.0,0.20590862]
[1762795300381,0.63018473,105510.0,105500.0,0.18957345]
[1762795300581,0.622577,105510.0,105500.0,0.18957345]
[1762795300958,0.624577,105510.0,105500.0,0.18957345]
[1762795301778,0.3002727,105510.0,105500.0,0.01632]
[1762795302008,0.640457,105510.0,105500.0,0.01632]
[1762795302215,0.3161527,105510.0,105500.0,0.20589345]
[1762795302378,0.28154043,105510.0,105500.0,0.01632]
[1762795302797,0.28254043,105510.0,105500.0,0.01632]
[1762795303198,0.60684473,105510.0,105500.0,0.20589345]
[1762795303894,0.60684473,105510.0,105500.0,0.01632]
[1762795304069,0.18957345,105500.0,105490.0,0.60926116]
[1762795304427,0.18957345,105500.0,105490.0,0.30127967]
[1762795305354,0.00047858,105510.0,105500.0,0.18957345]
[1762795305555,0.00047858,105510.0,105500.0,0.55295775]
[1762795305761,0.00047858,105510.0,105500.0,0.87726205]
[1762795305964,0.00047858,105510.0,105500.0,0.55295775]
[1762795306543,0.00047858,105510.0,105500.0,0.87726205]
[1762795306945,0.00047858,105510.0,105500.0,0.87133205]
[1762795307991,0.00047858,105510.0,105500.0,0.87233205]
[1762795308217,0.00047858,105510.0,105500.0,0.87133205]
[1762795308586,0.00047858,105510.0,105500.0,0.87333205]
[1762795308790,0.00047858,105510.0,105500.0,0.87433205]
[1762795308982,0.00047858,105510.0,105500.0,0.59389833]
[1762795309194,0.00047858,105510.0,105500.0,0.59289833]
[1762795309615,0.00047858,105510.0,105500.0,0.59489833]
[1762795311057,0.00047858,105510.0,105500.0,0.22672345]
[1762795311314,0.00047858,105510.0,105500.0,0.59489833]
[1762795311937,0.00047858,105510.0,105500.0,0.22672345]
[1762795312150,0.00047858,105510.0,105500.0,0.59489833]
[1762795313222,0.00047858,105510.0,105500.0,0.74039833]
[1762795316632,0.00047858,105510.0,105500.0,0.37222345]
[1762795317467,0.00047858,105510.0,105500.0,0.74039833]
[1762795320023,0.00047858,105510.0,105500.0,0.37222345]
[1762795320454,0.00047858,105510.0,105500.0,0.74039833]
[1762795322711,0.00047858,105510.0,105500.0,0.34946345]
[1762795323032,0.00047858,105510.0,105500.0,0.37226345]
[1762795323914,0.19003407,105510.0,105500.0,0.37226345]
[1762795324482,0.19003407,105510.0,105500.0,0.37819345]
[1762795324685,0.20599407,105510.0,105500.0,0.1495]
[1762795324883,0.68784531,105510.0,105500.0,0.004]
[1762795325108,0.31967043,105510.0,105500.0,0.004]
[1762795325282,0.29650043,105510.0,105500.0,0.004]
[1762795325468,0.29650043,105510.0,105500.0,0.002]
[1762795326060,0.18957345,105500.0,105490.0,0.43049967]
[1762795326291,0.20553345,105500.0,105490.0,0.07260824]
[1762795326500,0.22870345,105500.0,105490.0,0.26219967]
[1762795326738,0.20553345,105500.0,105490.0,0.18959143]
[1762795327179,0.30371043,105510.0,105490.0,0.20506143]
[1762795327391,0.29828155,105510.0,105500.0,0.22400079]
[1762795327611,0.29828155,105510.0,105500.0,0.20504345]
[1762795327843,0.0182197,105510.0,105500.0,0.22784345]
[1762795328054,0.00047858,105510.0,105500.0,0.22784345]
[1762795328663,0.00047858,105510.0,105500.0,0.59601833]
[1762795329089,0.00047858,105510.0,105500.0,0.7263345]
[1762795329510,0.00047858,105510.0,105500.0,0.22784345]
[1762795330113,0.00047858,105510.0,105500.0,0.22984345]
[1762795330974,0.00047858,105510.0,105500.0,0.55388793]
[1762795332456,0.00047858,105510.0,105500.0,0.69938793]
[1762795334804,0.00047858,105510.0,105500.0,0.76730726]
[1762795336451,0.00047858,105510.0,105500.0,1.09030726]
[1762795337627,0.00047858,105510.0,105500.0,1.02238793]
[1762795338077,0.00047858,105510.0,105500.0,1.10728709]
[1762795338255,0.00047858,105510.0,105500.0,1.11323709]
[1762795339835,0.00047858,105510.0,105500.0,1.43728157]
[1762795340078,0.00047858,105510.0,105500.0,1.11323709]
[1762795340277,0.00204889,105520.0,105510.0,0.51255549]
[1762795340472,0.00204889,105520.0,105510.0,1.36958153]
[1762795340473,0.00213963,105520.0,105510.0,1.36958153]
[1762795340890,0.0002,105540.0,105530.0,0.18951956]
[1762795341079,0.0002,105540.0,105530.0,0.56414404]
[1762795341287,0.00067128,105540.0,105530.0,0.56414404]
[1762795345343,0.00067128,105540.0,105530.0,0.63651155]
[1762795349307,0.00067128,105540.0,105530.0,0.31246707]
[1762795349512,0.00067128,105540.0,105530.0,0.63651155]
[1762795351561,0.00067128,105540.0,105530.0,0.31246707]
[1762795351729,0.00067128,105540.0,105530.0,0.63651155]
[1762795354299,0.00067128,105540.0,105530.0,0.78201155]
[1762795355116,0.00067128,105540.0,105530.0,0.45796707]
[1762795355314,0.00067128,105540.0,105530.0,0.78201155]
[1762795356991,0.00067128,105540.0,105530.0,1.26318891]
[1762795358050,0.00067128,105540.0,105530.0,1.26718891]
[1762795360195,0.00067128,105540.0,105530.0,0.94314443]
[1762795360321,0.00067128,105540.0,105530.0,1.26718891]
[1762795360705,0.21514289,105540.0,105530.0,0.08867751]
[1762795360857,0.21514289,105540.0,105530.0,0.27819707]
[1762795361485,0.00067128,105540.0,105530.0,0.63999155]
[1762795361645,0.00067128,105540.0,105530.0,0.63899155]
[1762795361855,0.00067128,105540.0,105530.0,0.31494707]
[1762795362081,0.00067128,105540.0,105530.0,0.31594707]
[1762795362304,0.00067128,105540.0,105530.0,0.63999155]
[1762795363246,0.00067128,105540.0,105530.0,0.70766255]
[1762795365838,0.00067128,105540.0,105530.0,0.85316255]
[1762795367365,0.00067128,105540.0,105530.0,0.85317066]
[1762795367631,0.00067128,105540.0,105530.0,0.52912618]
[1762795367835,0.00067128,105540.0,105530.0,0.85317066]
[1762795368472,0.00067128,105540.0,105530.0,0.85318355]
[1762795369423,0.00067128,105540.0,105530.0,0.78549155]
[1762795370173,0.00067128,105540.0,105530.0,0.85320505]
[1762795370369,0.00067128,105540.0,105530.0,0.78549155]
[1762795371256,0.01574128,105540.0,105530.0,0.29991646]
[1762795371463,0.00067128,105540.0,105530.0,0.52918602]
[1762795374879,0.00067128,105540.0,105530.0,0.38368602]
[1762795375404,0.19017289,105540.0,105530.0,0.38368602]
[1762795376699,0.00067128,105540.0,105530.0,0.38368602]
[1762795377434,0.19017289,105540.0,105530.0,0.38368602]
[1762795378453,0.00067128,105540.0,105530.0,0.38368602]
[1762795380672,0.00067128,105540.0,105530.0,0.52918602]
[1762795381295,0.00067128,105540.0,105530.0,0.8529705]
[1762795381690,0.00067128,105540.0,105530.0,0.78523155]
[1762795382225,0.00067128,105540.0,105530.0,0.85297271]
[1762795382604,0.00067128,105540.0,105530.0,0.85197271]
[1762795382846,0.00067128,105540.0,105530.0,0.85097271]
[1762795383057,0.00067128,105540.0,105530.0,0.85297271]
[1762795383281,0.00067128,105540.0,105530.0,0.85397271]
[1762795384869,0.19017289,105540.0,105530.0,0.52992823]
[1762795385082,0.55354737,105540.0,105530.0,0.1485]
[1762795386097,0.55354737,105540.0,105530.0,0.1455]
[1762795386293,0.55354737,105540.0,105530.0,0.1465]
[1762795386496,0.55354737,105540.0,105530.0,0.001]
[1762795387128,0.22950289,105540.0,105530.0,0.001]
[1762795387293,0.55354737,105540.0,105530.0,0.001]
[1762795387723,0.91377413,105540.0,105530.0,0.001]
[1762795387872,1.26569639,105540.0,105530.0,0.001]
[1762795388250,0.18955549,105510.0,105500.0,0.27894328]
[1762795388443,0.00861,105510.0,105500.0,0.28108627]
[1762795388844,0.00861,105510.0,105500.0,0.31956627]
[1762795389656,0.00861,105510.0,105500.0,0.29779627]
[1762795391913,0.6521078,105510.0,105500.0,0.19066419]
[1762795392662,0.13844636,105510.0,105500.0,0.19066419]
[1762795392848,0.11488636,105510.0,105500.0,0.19066419]
[1762795393210,0.42322231,105510.0,105500.0,0.22914419]
[1762795393675,0.6127778,105510.0,105500.0,0.20637419]
[1762795393878,0.6127778,105510.0,105500.0,0.18966419]
[1762795393879,0.6285478,105510.0,105500.0,0.18966419]
[1762795394021,0.43899231,105510.0,105500.0,0.18966419]
[1762795394220,0.00861,105510.0,105500.0,0.20537419]
[1762795394428,0.09911636,105510.0,105500.0,0.22814419]
[1762795394632,0.42322231,105510.0,105500.0,0.22814419]
[1762795394854,0.09911636,105510.0,105500.0,0.22814419]
[1762795395057,0.28867185,105510.0,105500.0,0.22814419]
[1762795395262,0.28867185,105510.0,105500.0,0.20537419]
[1762795395666,0.09911636,105510.0,105500.0,0.20537419]
[1762795396024,0.6285478,105510.0,105500.0,0.18966419]
[1762795396659,0.6285478,105510.0,105500.0,9.074e-05]
[1762795397073,0.6285478,105510.0,105500.0,0.18966419]
[1762795397431,0.00861,105510.0,105500.0,0.20537419]
[1762795397601,0.00861,105510.0,105500.0,0.22814419]
[1762795397797,0.52225347,105520.0,105510.0,0.18955549]
[1762795398292,0.18955549,105510.0,105500.0,0.22370419]
[1762795398523,0.28006185,105510.0,105500.0,0.20093419]
[1762795398729,0.09050636,105510.0,105500.0,0.20093419]
[1762795398939,0.09050636,105510.0,105500.0,0.21664419]
[1762795399120,0.54581347,105520.0,105510.0,0.18955549]
[1762795399847,0.22170752,105520.0,105510.0,0.18955549]
[1762795400005,0.56358347,105520.0,105500.0,0.22370419]
[1762795400202,0.18955549,105510.0,105500.0,0.22370419]
[1762795400431,0.56358347,105520.0,105500.0,0.22370419]
[1762795400587,0.54781347,105520.0,105510.0,0.18955549]
[1762795400788,0.54581347,105520.0,105510.0,0.18955549]
[1762795400994,0.56158347,105520.0,105510.0,0.18955549]
[1762795401339,0.56358347,105520.0,105510.0,0.18955549]
[1762795401704,0.56158347,105520.0,105510.0,0.18955549]
[1762795401907,0.56358347,105520.0,105510.0,0.18955549]
[1762795402745,0.02638,105520.0,105510.0,0.18955549]
[1762795402944,0.01061,105520.0,105510.0,0.24258549]
[1762795403941,0.00861,105520.0,105510.0,0.21837549]
[1762795404146,0.00861,105520.0,105510.0,0.24258549]
[1762795405756,0.19814752,105520.0,105510.0,0.21837549]
[1762795406457,0.23854752,105520.0,105500.0,0.20093419]
[1762795406678,0.52986144,105510.0,105500.0,0.20093419]
[1762795406979,0.55406144,105510.0,105500.0,0.14559074]
[1762795409408,0.55406144,105510.0,105500.0,0.14659074]
[1762795409834,0.55406144,105510.0,105500.0,0.14559074]
[1762795412724,0.55406144,105510.0,105500.0,0.33516419]
[1762795412926,0.55406144,105510.0,105500.0,0.18966419]
[1762795413773,0.18955549,105510.0,105500.0,0.21848419]
[1762795413972,0.6203678,105510.0,105500.0,0.01259074]
[1762795414378,0.6445678,105510.0,105500.0,0.20216419]
[1762795414694,0.6445678,105510.0,105500.0,9.074e-05]
[1762795415079,0.6203678,105510.0,105500.0,9.074e-05]
[1762795415280,0.63812207,105510.0,105500.0,9.074e-05]
[1762795415682,0.63812207,105510.0,105500.0,0.18966419]
[1762795415884,0.63812207,105510.0,105500.0,9.074e-05]
[1762795416085,0.66232207,105510.0,105500.0,9.074e-05]
[1762795418060,0.22350976,105510.0,105500.0,0.18966419]
[1762795418219,0.35806022,105510.0,105500.0,0.18966419]
[1762795418420,0.35806022,105510.0,105500.0,0.21848419]
[1762795418683,0.54761571,105510.0,105500.0,0.21848419]
[1762795418853,0.54761571,105510.0,105500.0,0.20216419]
[1762795419483,0.54761571,105510.0,105500.0,0.01259074]
[1762795419692,0.66232207,105510.0,105500.0,9.074e-05]
[1762795420434,0.05815427,105510.0,105500.0,0.18966419]
[1762795420676,0.01775427,105510.0,105500.0,0.24269419]
[1762795420899,0.01775427,105510.0,105500.0,0.54259014]
[1762795421114,0.52225454,105520.0,105510.0,0.18955549]
[1762795421326,0.54001888,105520.0,105510.0,0.18955549]
[1762795421532,0.58041888,105520.0,105510.0,0.18955549]
[1762795422187,0.58241888,105520.0,105510.0,0.18955549]
[1762795426401,0.35248029,105520.0,105510.0,0.24258549]
[1762795426603,0.33471595,105520.0,105510.0,0.24258549]
[1762795427573,0.33271595,105520.0,105510.0,0.21837549]
[1762795427780,0.00861,105520.0,105510.0,0.21837549]
[1762795427930,0.33271595,105520.0,105510.0,0.21837549]